[Event "GrandPrix_30.05"]
[Site "Chess.com"]
[Date "2020.05.30"]
[Round "3"]
[White "SergeyVashchilov"]
[Black "Nikame"]
[Result "0-1"]
[WhiteElo "2050"]
[BlackElo "2228"]
[TimeControl "600+2"]
[EndTime "9:23:58 PDT"]
[Termination "Nikame won on time"]

1. e4 {[%clk 0:10:01.9]} 1... c5 {[%clk 0:09:59]} 2. Nf3 {[%clk 0:10:02.2]} 2...
Nc6 {[%clk 0:10:00]} 3. Bb5 {[%clk 0:10:00.8]} 3... Nf6 {[%clk 0:09:58.5]} 4.
Nc3 {[%clk 0:09:59.5]} 4... e5 {[%clk 0:09:46.5]} 5. Bxc6 {[%clk 0:09:52.9]}
5... dxc6 {[%clk 0:09:47.2]} 6. Nxe5 {[%clk 0:09:30.7]} 6... Nxe4 {[%clk
0:09:47.9]} 7. Qe2 {[%clk 0:08:57.7]} 7... Nxc3 {[%clk 0:09:44.8]} 8. dxc3
{[%clk 0:08:52.9]} 8... Be6 {[%clk 0:09:33.7]} 9. Be3 {[%clk 0:08:19.2]} 9...
Be7 {[%clk 0:08:57.9]} 10. Rd1 {[%clk 0:07:50]} 10... Qa5 {[%clk 0:08:37.6]} 11.
a3 {[%clk 0:07:37.4]} 11... O-O {[%clk 0:08:37.4]} 12. O-O {[%clk 0:07:37.4]}
12... Rfe8 {[%clk 0:08:35.7]} 13. f4 {[%clk 0:06:00.5]} 13... Bf6 {[%clk
0:08:21.8]} 14. Qf2 {[%clk 0:05:46.8]} 14... Qb5 {[%clk 0:08:06.9]} 15. b3
{[%clk 0:05:16.7]} 15... c4 {[%clk 0:07:59.9]} 16. a4 {[%clk 0:04:46.4]} 16...
Qa5 {[%clk 0:07:59.5]} 17. b4 {[%clk 0:04:47.7]} 17... Qc7 {[%clk 0:07:46.1]}
18. Bd4 {[%clk 0:04:43.9]} 18... Bd5 {[%clk 0:07:45.5]} 19. Qg3 {[%clk
0:04:16.5]} 19... a5 {[%clk 0:07:36.7]} 20. b5 {[%clk 0:03:57.9]} 20... c5
{[%clk 0:06:27.7]} 21. Ng4 {[%clk 0:03:19.7]} 21... Bxd4+ {[%clk 0:06:27.6]} 22.
cxd4 {[%clk 0:03:20.6]} 22... Kh8 {[%clk 0:06:24.7]} 23. dxc5 {[%clk 0:02:55.6]}
23... Qxc5+ {[%clk 0:06:20.6]} 24. Qf2 {[%clk 0:02:56.9]} 24... Qxf2+ {[%clk
0:06:11.2]} 25. Rxf2 {[%clk 0:02:58.8]} 25... Be4 {[%clk 0:05:57.6]} 26. Rd4
{[%clk 0:02:59.1]} 26... Bf5 {[%clk 0:05:45.4]} 27. Ne5 {[%clk 0:02:58.5]} 27...
f6 {[%clk 0:05:45.1]} 28. Nxc4 {[%clk 0:02:55.4]} 28... Re1+ {[%clk 0:05:22.5]}
29. Rf1 {[%clk 0:02:56]} 29... Re2 {[%clk 0:05:23.6]} 30. Nxa5 {[%clk
0:02:24.7]} 30... h6 {[%clk 0:05:01.2]} 31. Nxb7 {[%clk 0:02:24.7]} 31... Be4
{[%clk 0:05:00.8]} 32. Rfd1 {[%clk 0:02:05.5]} 32... Bxb7 {[%clk 0:04:33.5]} 33.
Rd8+ {[%clk 0:02:06]} 33... Kh7 {[%clk 0:04:31.8]} 34. Rxa8 {[%clk 0:02:06.2]}
34... Bxa8 {[%clk 0:04:33.3]} 35. Rd8 {[%clk 0:01:52.5]} 35... Be4 {[%clk
0:04:07.9]} 36. Rb8 {[%clk 0:00:16.4]} 36... Rxg2+ {[%clk 0:04:06.1]} 37. Kf1
{[%clk 0:00:17.7]} 37... Rxc2 {[%clk 0:04:05.4]} 38. a5 {[%clk 0:00:18.9]} 38...
Rxh2 {[%clk 0:03:44.8]} 39. Ke1 {[%clk 0:00:11]} 39... Ra2 {[%clk 0:03:41.5]}
40. a6 {[%clk 0:00:11.9]} 40... Bd3 {[%clk 0:03:41.2]} 41. Kd1 {[%clk 0:00:04]}
41... Kg6 {[%clk 0:03:31.8]} 42. Rb7 {[%clk 0:00:02.3]} 42... Bxb5 {[%clk
0:03:31.1]} 43. Rxb5 {[%clk 0:00:03.1]} 43... Rxa6 {[%clk 0:03:31.7]} 44. Ke2
{[%clk 0:00:04.5]} 44... Ra3 {[%clk 0:03:20.2]} 45. Kf2 {[%clk 0:00:05.4]} 45...
h5 {[%clk 0:03:20]} 46. Rc5 {[%clk 0:00:05]} 46... h4 {[%clk 0:03:17]} 47. Kg2
{[%clk 0:00:06.2]} 47... Kh6 {[%clk 0:03:12.4]} 48. Kf2 {[%clk 0:00:06.8]} 48...
Ra2+ {[%clk 0:03:05.4]} 49. Kf3 {[%clk 0:00:07.5]} 49... h3 {[%clk 0:03:04.5]}
50. Kg3 {[%clk 0:00:06.8]} 50... h2 {[%clk 0:03:05.5]} 51. Rc1 {[%clk
0:00:07.4]} 51... Kh5 {[%clk 0:02:59]} 52. Rc5+ {[%clk 0:00:03.9]} 52... f5
{[%clk 0:02:41.6]} 53. Rc1 {[%clk 0:00:04.6]} 53... Rb2 {[%clk 0:02:24.7]} 54.
Rd1 {[%clk 0:00:04.9]} 54... g5 {[%clk 0:02:07.6]} 55. fxg5 {[%clk 0:00:05.2]}
55... Kxg5 {[%clk 0:02:07.5]} 56. Rh1 {[%clk 0:00:05.7]} 56... f4+ {[%clk
0:02:04.8]} 57. Kf3 {[%clk 0:00:06.2]} 57... Kh4 {[%clk 0:01:55.7]} 58. Kxf4
{[%clk 0:00:04.2]} 58... Rf2+ {[%clk 0:01:53.3]} 59. Ke3 {[%clk 0:00:04.7]}
59... Kg3 {[%clk 0:01:54.3]} 60. Rc1 {[%clk 0:00:04.3]} 60... Rg2 {[%clk
0:01:51.6]} 61. Rh1 {[%clk 0:00:02.7]} 61... Rg1 {[%clk 0:01:51.3]} 0-1

[Event "GrandPrix_30.05"]
[Site "Chess.com"]
[Date "2020.05.30"]
[Round "3"]
[White "EvgenyRomanov"]
[Black "Alex_Krayz"]
[Result "1-0"]
[WhiteElo "2104"]
[BlackElo "2161"]
[TimeControl "600+2"]
[EndTime "9:24:00 PDT"]
[Termination "EvgenyRomanov won on time"]

1. d4 {[%clk 0:09:48.2]} 1... Nf6 {[%clk 0:09:59.7]} 2. c4 {[%clk 0:09:44.7]}
2... e6 {[%clk 0:09:59.9]} 3. Nf3 {[%clk 0:09:44.2]} 3... b6 {[%clk 0:10:00.2]}
4. g3 {[%clk 0:09:45.2]} 4... Ba6 {[%clk 0:10:00.1]} 5. Qb3 {[%clk 0:09:45.4]}
5... Bb7 {[%clk 0:09:56.2]} 6. Bg2 {[%clk 0:09:45.4]} 6... c5 {[%clk 0:09:56.4]}
7. dxc5 {[%clk 0:09:43.4]} 7... Bxc5 {[%clk 0:09:52.8]} 8. O-O {[%clk
0:09:44.2]} 8... Be7 {[%clk 0:09:49.7]} 9. Nc3 {[%clk 0:09:43.5]} 9... Na6
{[%clk 0:09:47.3]} 10. Bf4 {[%clk 0:09:30.5]} 10... Nc5 {[%clk 0:09:35.2]} 11.
Qc2 {[%clk 0:09:30.3]} 11... O-O {[%clk 0:09:34.2]} 12. Rfd1 {[%clk 0:09:24.4]}
12... a6 {[%clk 0:08:10.1]} 13. b4 {[%clk 0:09:02.7]} 13... Nce4 {[%clk
0:08:09.7]} 14. Nxe4 {[%clk 0:08:52.3]} 14... Bxe4 {[%clk 0:08:04.8]} 15. Qb3
{[%clk 0:08:42.5]} 15... d6 {[%clk 0:06:52.9]} 16. Rac1 {[%clk 0:07:12.1]} 16...
Qb8 {[%clk 0:06:22.9]} 17. Qe3 {[%clk 0:07:02.3]} 17... Rd8 {[%clk 0:06:10]} 18.
c5 {[%clk 0:06:30.1]} 18... bxc5 {[%clk 0:05:04.1]} 19. bxc5 {[%clk 0:06:32]}
19... h6 {[%clk 0:04:52]} 20. Rd4 {[%clk 0:02:56.7]} 20... e5 {[%clk 0:03:40]}
21. Rxe4 {[%clk 0:02:27.7]} 21... exf4 {[%clk 0:03:38]} 22. gxf4 {[%clk
0:01:43.4]} 22... Nxe4 {[%clk 0:03:17.2]} 23. Qxe4 {[%clk 0:01:44.5]} 23... Qb2
{[%clk 0:02:57.1]} 24. Rd1 {[%clk 0:00:45.3]} 24... Bf8 {[%clk 0:02:08.4]} 25.
cxd6 {[%clk 0:00:43.5]} 25... Rac8 {[%clk 0:01:55.6]} 26. d7 {[%clk 0:00:23.9]}
26... Rc1 {[%clk 0:01:53.1]} 27. Qd3 {[%clk 0:00:22.8]} 27... Qa1 {[%clk
0:01:23.7]} 28. Rf1 {[%clk 0:00:23.4]} 28... Rxf1+ {[%clk 0:00:55.2]} 29. Bxf1
{[%clk 0:00:25.3]} 29... Bc5 {[%clk 0:00:51.5]} 30. e3 {[%clk 0:00:21.8]} 30...
Qf6 {[%clk 0:00:20.3]} 31. Ne5 {[%clk 0:00:21.2]} 31... Qd6 {[%clk 0:00:18]} 32.
Qc4 {[%clk 0:00:17.2]} 32... Rf8 {[%clk 0:00:06.8]} 33. d8=Q {[%clk 0:00:06.5]}
33... Qxd8 {[%clk 0:00:05.6]} 34. Qxc5 {[%clk 0:00:07.4]} 34... a5 {[%clk
0:00:03.8]} 35. Bc4 {[%clk 0:00:06.4]} 35... Qd2 {[%clk 0:00:03.8]} 36. Qd5
{[%clk 0:00:06]} 36... Qc1+ {[%clk 0:00:04.5]} 37. Kg2 {[%clk 0:00:06.9]} 37...
Qb2 {[%clk 0:00:04.8]} 38. Ng6 {[%clk 0:00:07]} 1-0

[Event "GrandPrix_30.05"]
[Site "Chess.com"]
[Date "2020.05.30"]
[Round "3"]
[White "LiamVrolijk"]
[Black "Zakaryan_David"]
[Result "1-0"]
[WhiteElo "2417"]
[BlackElo "1578"]
[TimeControl "600+2"]
[EndTime "9:24:01 PDT"]
[Termination "LiamVrolijk won by checkmate"]

1. d4 {[%clk 0:10:01.9]} 1... Nf6 {[%clk 0:09:58.6]} 2. Bg5 {[%clk 0:10:01.1]}
2... Ne4 {[%clk 0:09:39]} 3. Bf4 {[%clk 0:10:01.5]} 3... d5 {[%clk 0:09:39.4]}
4. e3 {[%clk 0:10:02.3]} 4... c5 {[%clk 0:09:34.5]} 5. Bd3 {[%clk 0:09:59.5]}
5... Nf6 {[%clk 0:09:11.9]} 6. dxc5 {[%clk 0:09:50.4]} 6... Nc6 {[%clk
0:09:01.7]} 7. Nf3 {[%clk 0:09:49.6]} 7... Bg4 {[%clk 0:09:01.1]} 8. Bb5 {[%clk
0:09:12.1]} 8... e6 {[%clk 0:08:24.9]} 9. b4 {[%clk 0:08:52.4]} 9... a5 {[%clk
0:07:34.6]} 10. c3 {[%clk 0:08:50.2]} 10... Be7 {[%clk 0:06:42.8]} 11. Nbd2
{[%clk 0:07:42.4]} 11... O-O {[%clk 0:06:28.2]} 12. Qb3 {[%clk 0:06:20.2]} 12...
Nh5 {[%clk 0:05:30.5]} 13. Bxc6 {[%clk 0:05:53.2]} 13... bxc6 {[%clk 0:05:28.3]}
14. Ne5 {[%clk 0:05:53.7]} 14... a4 {[%clk 0:05:04.4]} 15. Qb2 {[%clk
0:05:33.1]} 15... a3 {[%clk 0:04:16.3]} 16. Qc1 {[%clk 0:05:18.8]} 16... Nxf4
{[%clk 0:03:56.9]} 17. exf4 {[%clk 0:05:20.7]} 17... Bf5 {[%clk 0:03:57.5]} 18.
Nxc6 {[%clk 0:05:16.7]} 18... Qd7 {[%clk 0:03:57]} 19. Nxe7+ {[%clk 0:05:14.6]}
19... Qxe7 {[%clk 0:03:57.9]} 20. O-O {[%clk 0:05:12.8]} 20... h6 {[%clk
0:03:54]} 21. Re1 {[%clk 0:05:10.7]} 21... Kh7 {[%clk 0:03:49.8]} 22. Nb3 {[%clk
0:05:08.3]} 22... Rg8 {[%clk 0:03:28.4]} 23. Nd4 {[%clk 0:05:06.5]} 23... Qf6
{[%clk 0:03:07.5]} 24. Qe3 {[%clk 0:04:39]} 24... Be4 {[%clk 0:02:49.9]} 25. f3
{[%clk 0:04:34.9]} 25... Bg6 {[%clk 0:02:51]} 26. Qe5 {[%clk 0:04:36]} 26... Qh4
{[%clk 0:02:51.6]} 27. Rad1 {[%clk 0:03:38.3]} 27... Rae8 {[%clk 0:02:52]} 28.
Nb5 {[%clk 0:03:28.8]} 28... f6 {[%clk 0:02:51.6]} 29. Qe3 {[%clk 0:03:24.1]}
29... e5 {[%clk 0:02:45.5]} 30. Nd6 {[%clk 0:03:08]} 30... exf4 {[%clk
0:02:26.8]} 31. Qf2 {[%clk 0:03:09.2]} 31... Rxe1+ {[%clk 0:02:26.5]} 32. Qxe1
{[%clk 0:03:00.8]} 32... Qh5 {[%clk 0:02:10.9]} 33. c6 {[%clk 0:02:55.8]} 33...
Bc2 {[%clk 0:01:46.7]} 34. Rd2 {[%clk 0:02:48.2]} 34... Ba4 {[%clk 0:01:47.5]}
35. b5 {[%clk 0:02:29]} 35... d4 {[%clk 0:01:22.6]} 36. Rxd4 {[%clk 0:01:43.6]}
36... Qc5 {[%clk 0:00:54.3]} 37. Qb1+ {[%clk 0:01:43.4]} 37... g6 {[%clk
0:00:51.6]} 38. Qb4 {[%clk 0:01:35.2]} 38... Qe5 {[%clk 0:00:50.1]} 39. Ne4
{[%clk 0:00:35.7]} 39... Bxb5 {[%clk 0:00:42.9]} 40. Rd5 {[%clk 0:00:29.1]}
40... Qe6 {[%clk 0:00:27]} 41. Qxb5 {[%clk 0:00:24.1]} 41... f5 {[%clk
0:00:27.9]} 42. Rd7+ {[%clk 0:00:13.8]} 42... Kh8 {[%clk 0:00:28.8]} 43. Qc5
{[%clk 0:00:11.9]} 43... fxe4 {[%clk 0:00:25.8]} 44. Qd4+ {[%clk 0:00:12.9]}
44... Rg7 {[%clk 0:00:24.5]} 45. Qxg7# {[%clk 0:00:14.1]} 1-0

[Event "GrandPrix_30.05"]
[Site "Chess.com"]
[Date "2020.05.30"]
[Round "3"]
[White "Tokarev_Sergey"]
[Black "BlackBoarder"]
[Result "0-1"]
[WhiteElo "1987"]
[BlackElo "2164"]
[TimeControl "600+2"]
[EndTime "9:24:03 PDT"]
[Termination "BlackBoarder won by resignation"]

1. c4 {[%clk 0:09:52.9]} 1... e6 {[%clk 0:09:59.4]} 2. Nc3 {[%clk 0:09:52.2]}
2... d5 {[%clk 0:09:50.8]} 3. cxd5 {[%clk 0:09:54.1]} 3... exd5 {[%clk
0:09:51.3]} 4. d4 {[%clk 0:09:55.8]} 4... c6 {[%clk 0:09:44.7]} 5. Nf3 {[%clk
0:09:56.3]} 5... Nf6 {[%clk 0:09:39.1]} 6. g3 {[%clk 0:09:57]} 6... Bd6 {[%clk
0:09:27.6]} 7. Bg2 {[%clk 0:09:55.8]} 7... O-O {[%clk 0:09:28.2]} 8. O-O {[%clk
0:09:52.3]} 8... Re8 {[%clk 0:09:27.8]} 9. Bf4 {[%clk 0:09:48.5]} 9... Bf5
{[%clk 0:08:37]} 10. Ne5 {[%clk 0:09:41.6]} 10... Qe7 {[%clk 0:08:18.9]} 11. f3
{[%clk 0:09:31.2]} 11... Nbd7 {[%clk 0:06:57.2]} 12. Nd3 {[%clk 0:09:17]} 12...
Bxf4 {[%clk 0:05:08.9]} 13. Nxf4 {[%clk 0:09:15]} 13... Qe3+ {[%clk 0:04:52.2]}
14. Kh1 {[%clk 0:09:13.6]} 14... Nb6 {[%clk 0:04:48.6]} 15. Na4 {[%clk
0:05:19.1]} 15... Nc4 {[%clk 0:02:58.5]} 16. b3 {[%clk 0:04:43.3]} 16... Nd2
{[%clk 0:02:53.7]} 17. Re1 {[%clk 0:04:44.6]} 17... Qxd4 {[%clk 0:02:15.5]} 18.
Nd3 {[%clk 0:04:19.3]} 18... Qe3 {[%clk 0:01:40.4]} 19. Nab2 {[%clk 0:03:04.2]}
19... c5 {[%clk 0:01:27.8]} 20. Rc1 {[%clk 0:03:02.7]} 20... c4 {[%clk
0:01:21.7]} 21. bxc4 {[%clk 0:02:52.4]} 21... dxc4 {[%clk 0:01:21.9]} 22. Nxc4
{[%clk 0:02:53.3]} 22... Nxc4 {[%clk 0:01:20.9]} 23. Rxc4 {[%clk 0:02:48.8]}
23... Bxd3 {[%clk 0:01:20]} 24. Rc3 {[%clk 0:02:44.2]} 24... Rad8 {[%clk
0:00:59.4]} 25. Qb3 {[%clk 0:02:45]} 25... Qf2 {[%clk 0:00:41.3]} 26. Rf1 {[%clk
0:02:38.1]} 26... Qxe2 {[%clk 0:00:41.4]} 27. h4 {[%clk 0:02:31.1]} 27... Bf5
{[%clk 0:00:27.7]} 28. Rfc1 {[%clk 0:02:27.4]} 28... h6 {[%clk 0:00:25.1]} 29.
Rc7 {[%clk 0:01:58.5]} 29... Be6 {[%clk 0:00:20.6]} 30. Qxb7 {[%clk 0:01:58.1]}
30... Qxa2 {[%clk 0:00:20.1]} 31. R7c2 {[%clk 0:01:45.5]} 31... Qa3 {[%clk
0:00:18.4]} 32. Rc3 {[%clk 0:01:44.7]} 32... Qa5 {[%clk 0:00:18.8]} 33. Rc5
{[%clk 0:01:43.5]} 33... Qb6 {[%clk 0:00:19.9]} 34. Qc7 {[%clk 0:01:39.4]} 34...
Qxc7 {[%clk 0:00:20.3]} 35. Rxc7 {[%clk 0:01:41.3]} 35... Rc8 {[%clk 0:00:21.2]}
36. f4 {[%clk 0:01:40]} 36... a5 {[%clk 0:00:19.8]} 37. Rxc8 {[%clk 0:01:37.6]}
37... Rxc8 {[%clk 0:00:20.6]} 38. Ra1 {[%clk 0:01:39.5]} 38... Rc5 {[%clk
0:00:21]} 39. Bf1 {[%clk 0:01:40.7]} 39... Ne4 {[%clk 0:00:15.1]} 40. Kg2 {[%clk
0:01:40.1]} 40... Nc3 {[%clk 0:00:16]} 41. Rc1 {[%clk 0:01:38]} 41... a4 {[%clk
0:00:16.1]} 42. Bd3 {[%clk 0:01:37.9]} 42... a3 {[%clk 0:00:16.8]} 43. Ra1
{[%clk 0:01:38.1]} 43... a2 {[%clk 0:00:17.4]} 44. Kf3 {[%clk 0:01:38.6]} 44...
Rc7 {[%clk 0:00:16.1]} 45. Bc2 {[%clk 0:01:30.3]} 45... g6 {[%clk 0:00:10.9]}
46. h5 {[%clk 0:01:30.6]} 46... gxh5 {[%clk 0:00:11.1]} 47. f5 {[%clk
0:01:32.1]} 47... Bd5+ {[%clk 0:00:11.9]} 48. Kf4 {[%clk 0:01:33.7]} 48... Rb7
{[%clk 0:00:11.8]} 49. Re1 {[%clk 0:01:27.8]} 49... Kf8 {[%clk 0:00:07.6]} 50.
f6 {[%clk 0:01:26.4]} 50... Rb1 {[%clk 0:00:07.7]} 51. Bxb1 {[%clk 0:01:27.3]}
51... axb1=Q {[%clk 0:00:08.4]} 52. Re5 {[%clk 0:01:29.2]} 52... Qg6 {[%clk
0:00:04.8]} 53. Ke3 {[%clk 0:01:24.2]} 53... Qxf6 {[%clk 0:00:05.5]} 54. Kd4
{[%clk 0:01:21.9]} 54... Kg7 {[%clk 0:00:04.8]} 55. g4 {[%clk 0:01:22.4]} 55...
hxg4 {[%clk 0:00:05.7]} 56. Kd3 {[%clk 0:01:23]} 56... Qxe5 {[%clk 0:00:06.6]}
57. Kc2 {[%clk 0:01:24.9]} 57... g3 {[%clk 0:00:07.5]} 58. Kd3 {[%clk
0:01:26.8]} 0-1

[Event "GrandPrix_30.05"]
[Site "Chess.com"]
[Date "2020.05.30"]
[Round "3"]
[White "Vesper2018"]
[Black "OK97"]
[Result "0-1"]
[WhiteElo "1929"]
[BlackElo "2328"]
[TimeControl "600+2"]
[EndTime "9:24:07 PDT"]
[Termination "OK97 won by resignation"]

1. e4 {[%clk 0:10:01.1]} 1... g6 {[%clk 0:09:59.8]} 2. d4 {[%clk 0:10:01.5]}
2... Bg7 {[%clk 0:10:01.2]} 3. Nc3 {[%clk 0:10:02.4]} 3... d6 {[%clk 0:10:02.2]}
4. f4 {[%clk 0:10:01.9]} 4... Nf6 {[%clk 0:10:02.4]} 5. Nf3 {[%clk 0:10:02.7]}
5... O-O {[%clk 0:10:03.3]} 6. Bd3 {[%clk 0:10:00.8]} 6... Nc6 {[%clk
0:09:55.7]} 7. O-O {[%clk 0:09:38.1]} 7... e5 {[%clk 0:09:52.8]} 8. fxe5 {[%clk
0:09:34.2]} 8... dxe5 {[%clk 0:09:54.7]} 9. d5 {[%clk 0:09:35.6]} 9... Ne7
{[%clk 0:09:54.6]} 10. Bc4 {[%clk 0:08:36.6]} 10... Ne8 {[%clk 0:09:08.7]} 11.
Qe2 {[%clk 0:08:08.5]} 11... Nd6 {[%clk 0:09:07.7]} 12. Bb3 {[%clk 0:08:04.8]}
12... Bd7 {[%clk 0:07:33.4]} 13. a4 {[%clk 0:07:59]} 13... a5 {[%clk 0:06:52.5]}
14. Be3 {[%clk 0:07:23.8]} 14... b6 {[%clk 0:06:53.4]} 15. Qd2 {[%clk
0:06:23.5]} 15... Kh8 {[%clk 0:06:10.3]} 16. Bh6 {[%clk 0:06:18.1]} 16... f6
{[%clk 0:06:11.2]} 17. Bxg7+ {[%clk 0:06:00.8]} 17... Kxg7 {[%clk 0:06:13.1]}
18. Qe3 {[%clk 0:05:59.1]} 18... Bc8 {[%clk 0:05:39.5]} 19. Nb5 {[%clk
0:05:51.1]} 19... Nxb5 {[%clk 0:05:04.3]} 20. axb5 {[%clk 0:05:50.9]} 20... Qd6
{[%clk 0:05:06]} 21. Nd2 {[%clk 0:05:41.1]} 21... Bd7 {[%clk 0:04:10.5]} 22. Nc4
{[%clk 0:04:59.3]} 22... Qb4 {[%clk 0:03:55.1]} 23. d6 {[%clk 0:04:52.3]} 23...
cxd6 {[%clk 0:03:56.1]} 24. Nxb6 {[%clk 0:04:45.9]} 24... Rad8 {[%clk
0:03:29.9]} 25. c4 {[%clk 0:04:15.7]} 25... Be6 {[%clk 0:02:53.7]} 26. Ra4
{[%clk 0:03:40]} 26... Qc5 {[%clk 0:02:54.4]} 27. Qxc5 {[%clk 0:03:41]} 27...
dxc5 {[%clk 0:02:56.3]} 28. Rxa5 {[%clk 0:03:42.6]} 28... Rd3 {[%clk 0:01:54.7]}
29. Bc2 {[%clk 0:03:32.7]} 29... Rd2 {[%clk 0:01:24.3]} 30. Kh1 {[%clk
0:03:32.8]} 30... Rxc2 {[%clk 0:01:23.5]} 31. Ra7 {[%clk 0:03:14.5]} 31... Rf7
{[%clk 0:01:23.3]} 32. Rc7 {[%clk 0:03:03.1]} 32... Bxc4 {[%clk 0:01:03.1]} 33.
Nxc4 {[%clk 0:02:13.8]} 33... Rxc4 {[%clk 0:01:05]} 34. Ra1 {[%clk 0:02:12.3]}
34... Ng8 {[%clk 0:00:49.9]} 35. b6 {[%clk 0:02:12.1]} 35... Rb4 {[%clk
0:00:23.1]} 36. Raa7 {[%clk 0:02:09.1]} 36... Nh6 {[%clk 0:00:24.1]} 37. Ra6
{[%clk 0:01:15.5]} 37... Rxb2 {[%clk 0:00:19.8]} 38. h3 {[%clk 0:01:17]} 38...
Rb4 {[%clk 0:00:11.2]} 39. Rxc5 {[%clk 0:01:14.8]} 39... Rxe4 {[%clk 0:00:08]}
40. Rb5 {[%clk 0:00:24.4]} 40... Rb7 {[%clk 0:00:09]} 41. Ra7 {[%clk 0:00:25.8]}
41... Rxa7 {[%clk 0:00:10]} 42. bxa7 {[%clk 0:00:27.3]} 42... Ra4 {[%clk
0:00:11]} 43. Rb7+ {[%clk 0:00:27.7]} 43... Nf7 {[%clk 0:00:12.2]} 44. Kg1
{[%clk 0:00:29.3]} 44... Ra2 {[%clk 0:00:12.1]} 45. Kf1 {[%clk 0:00:27]} 45...
e4 {[%clk 0:00:13.4]} 46. Ke1 {[%clk 0:00:28.4]} 46... f5 {[%clk 0:00:14.7]} 47.
Kd1 {[%clk 0:00:29.2]} 47... f4 {[%clk 0:00:15.3]} 0-1

[Event "GrandPrix_30.05"]
[Site "Chess.com"]
[Date "2020.05.30"]
[Round "3"]
[White "Dolphin_2010"]
[Black "lelajavakhishvili"]
[Result "0-1"]
[WhiteElo "2013"]
[BlackElo "2201"]
[TimeControl "600+2"]
[EndTime "9:24:15 PDT"]
[Termination "lelajavakhishvili won by checkmate"]

1. e4 {[%clk 0:08:35]} 1... d6 {[%clk 0:09:53.9]} 2. d4 {[%clk 0:08:34.7]} 2...
Nf6 {[%clk 0:09:54.7]} 3. Nc3 {[%clk 0:08:33]} 3... g6 {[%clk 0:09:55.6]} 4. f4
{[%clk 0:08:33]} 4... Nc6 {[%clk 0:09:54.2]} 5. Nf3 {[%clk 0:08:29.9]} 5... Bg4
{[%clk 0:09:48.7]} 6. Be3 {[%clk 0:08:23.9]} 6... Bg7 {[%clk 0:09:44.4]} 7. h3
{[%clk 0:08:11.6]} 7... Bxf3 {[%clk 0:09:42.4]} 8. Qxf3 {[%clk 0:08:11.9]} 8...
Nd7 {[%clk 0:09:39.4]} 9. Rd1 {[%clk 0:08:08.8]} 9... O-O {[%clk 0:09:38.3]} 10.
Be2 {[%clk 0:07:36.7]} 10... e5 {[%clk 0:09:34.8]} 11. dxe5 {[%clk 0:07:30.4]}
11... dxe5 {[%clk 0:09:35.4]} 12. f5 {[%clk 0:06:58.6]} 12... Nd4 {[%clk
0:09:33.4]} 13. Qg3 {[%clk 0:05:11.1]} 13... Nxc2+ {[%clk 0:09:21.5]} 14. Kf2
{[%clk 0:05:09.9]} 14... Nd4 {[%clk 0:08:21.4]} 15. h4 {[%clk 0:04:51.4]} 15...
Kh8 {[%clk 0:07:54.6]} 16. h5 {[%clk 0:04:35.7]} 16... gxf5 {[%clk 0:07:53.5]}
17. h6 {[%clk 0:04:20.3]} 17... Bf6 {[%clk 0:07:52.6]} 18. exf5 {[%clk
0:04:16.1]} 18... Nxf5 {[%clk 0:06:12.4]} 19. Qf3 {[%clk 0:03:54.4]} 19... Nd4
{[%clk 0:05:46.2]} 20. Bxd4 {[%clk 0:03:31.8]} 20... exd4 {[%clk 0:05:45.6]} 21.
Qf5 {[%clk 0:03:07.1]} 21... Rg8 {[%clk 0:05:06.4]} 22. Bd3 {[%clk 0:02:49.9]}
22... Rg6 {[%clk 0:05:07.2]} 23. Nd5 {[%clk 0:02:44.4]} 23... Ne5 {[%clk
0:04:43.5]} 24. Be4 {[%clk 0:02:39.2]} 24... Qd6 {[%clk 0:04:17.6]} 25. Kg1
{[%clk 0:01:13.4]} 25... Ng4 {[%clk 0:03:32.7]} 26. Rh3 {[%clk 0:00:45.5]} 26...
d3 {[%clk 0:02:31.2]} 27. Nxf6 {[%clk 0:00:34.5]} 27... Qb6+ {[%clk 0:02:18.2]}
28. Kh1 {[%clk 0:00:34.1]} 28... Nf2+ {[%clk 0:01:59.3]} 29. Kh2 {[%clk
0:00:34]} 29... Qd6+ {[%clk 0:01:37]} 30. g3 {[%clk 0:00:32.1]} 30... Qxf6
{[%clk 0:01:24.6]} 31. Qxf6+ {[%clk 0:00:25.8]} 31... Rxf6 {[%clk 0:01:23.8]}
32. Rxd3 {[%clk 0:00:21.7]} 32... Nxd3 {[%clk 0:01:05.8]} 33. Bxd3 {[%clk
0:00:21.5]} 33... Rd8 {[%clk 0:01:04]} 34. g4 {[%clk 0:00:21.8]} 34... Rf2+
{[%clk 0:01:03.6]} 35. Kg1 {[%clk 0:00:21.9]} 35... Rxb2 {[%clk 0:01:02]} 36.
Re3 {[%clk 0:00:21.7]} 36... Kg8 {[%clk 0:00:51.3]} 37. a3 {[%clk 0:00:16.7]}
37... Kf8 {[%clk 0:00:49.9]} 38. Bf1 {[%clk 0:00:14.7]} 38... Rd1 {[%clk
0:00:48.9]} 39. Rf3 {[%clk 0:00:05.7]} 39... Rbb1 {[%clk 0:00:48.1]} 40. Kg2
{[%clk 0:00:04.2]} 40... Rxf1 {[%clk 0:00:46.4]} 41. Rxf1 {[%clk 0:00:06.1]}
41... Rxf1 {[%clk 0:00:47.2]} 42. Kxf1 {[%clk 0:00:08]} 42... f6 {[%clk
0:00:48.1]} 43. Ke2 {[%clk 0:00:08.4]} 43... Kf7 {[%clk 0:00:49.3]} 44. Ke3
{[%clk 0:00:09.3]} 44... Kg6 {[%clk 0:00:50.6]} 45. Kf4 {[%clk 0:00:09.9]} 45...
Kxh6 {[%clk 0:00:51.8]} 46. Kf5 {[%clk 0:00:11.5]} 46... Kg7 {[%clk 0:00:52.9]}
47. Ke6 {[%clk 0:00:12.3]} 47... c5 {[%clk 0:00:51.1]} 48. Kd5 {[%clk
0:00:12.5]} 48... b6 {[%clk 0:00:52.2]} 49. Kc6 {[%clk 0:00:13.4]} 49... c4
{[%clk 0:00:53.1]} 50. Kb7 {[%clk 0:00:13.8]} 50... c3 {[%clk 0:00:54.1]} 51.
Ka6 {[%clk 0:00:15.7]} 51... c2 {[%clk 0:00:54.9]} 52. Kb7 {[%clk 0:00:17.6]}
52... c1=Q {[%clk 0:00:55.8]} 53. Ka6 {[%clk 0:00:19.5]} 53... Qxa3+ {[%clk
0:00:56.6]} 54. Kb7 {[%clk 0:00:21.4]} 54... b5 {[%clk 0:00:57.6]} 55. Kc6
{[%clk 0:00:22.3]} 55... b4 {[%clk 0:00:58.7]} 56. Kb7 {[%clk 0:00:24.2]} 56...
b3 {[%clk 0:00:59.9]} 57. Kc6 {[%clk 0:00:26.1]} 57... b2 {[%clk 0:01:00.9]} 58.
Kb7 {[%clk 0:00:28]} 58... b1=Q+ {[%clk 0:01:01.8]} 59. Kc6 {[%clk 0:00:29.9]}
59... Qc3+ {[%clk 0:01:02.5]} 60. Kd7 {[%clk 0:00:31.8]} 60... Qd1+ {[%clk
0:01:03.1]} 61. Ke8 {[%clk 0:00:33.7]} 61... Qe3# {[%clk 0:01:03.6]} 0-1